[Event "XVI Memorial Ezequiel Martin 2024"]
[Site "Mollet"]
[Date "2024.06.09"]
[Round "2.2"]
[White "Garriga Cazorla, Pere"]
[Black "Martin Capitan, Feliciano"]
[Result "1/2-1/2"]
[ECO "D38"]
[WhiteElo "2471"]
[BlackElo "2018"]
[Annotator "TA"]
[PlyCount "73"]
[EventDate "2024.06.01"]
[EventType "swiss"]
[EventCountry "ESP"]
[SourceTitle "playchess.com"]
[Source "ChessBase"]
[SourceQuality "1"]
[TimeControl "900+5"]

{[%evp 12,73,0,0,8,0,6,10,43,39,45,0,20,0,65,74,54,-31,-22,-25,-27,-25,-14,-28,-21,-17,-16,-82,-76,-129,-114,-106,-62,-73,-47,-140,-150,-130,-126,-116,-101,-191,-177,-199,-123,-186,-100,-335,-322,-328,-299,-860,-860,-980,0,0,0,0,0,0,0,0,0,0]} 1. d4 {[%emt 0:00:03]} d5 {[%emt 0:00:07]} 2. c4 {[%emt 0:00:03]} e6 {[%emt 0:00:02]} 3. Nc3 {[%emt 0:00:05]} Bb4 {[%emt 0:00:03]} 4. Nf3 {[%emt 0:00:04]} Nf6 {[%emt 0:00:02]} 5. Qa4+ {[%emt 0:00:01]} Nc6 {[%emt 0:00:01]} 6. a3 {[%emt 0:00:01]} Bxc3+ {[%emt 0:00:20]} 7. bxc3 {[%emt 0:00:01]} O-O {[%emt 0:00:16]} 8. Bg5 {[%emt 0:00:03]} h6 {[%emt 0:00:08]} 9. Bh4 {[%emt 0:00:02]} Ne7 {[%emt 0:00:44]} 10. Bxf6 {[%emt 0:00:12]} gxf6 {[%emt 0:00:02]} 11. Qc2 {[%emt 0:00:14]} c5 {[%emt 0:02:26]} 12. cxd5 {[%emt 0:00:09]} cxd4 {[%emt 0:00:27]} (12... Qxd5 $11 13. e4 Qc6) 13. dxe6 $14 {[%emt 0:00:42] White is more active.} (13. Nxd4 e5 14. Nf3 Nxd5 $15) (13. cxd4 Qxd5 14. e3 b6 $11) 13... Bxe6 {[%emt 0:00:05]} 14. cxd4 {[%emt 0:00:59]} (14. Nxd4 $14 Rc8 15. Nxe6 fxe6 16. Rc1) 14... Rc8 $15 {[%emt 0:03:02]} 15. Qd2 {[%emt 0:00:20][%cal Oe2e3]} Bf5 $1 {[%emt 0:00:35] [#] ...Rc2 is the strong threat.} 16. e4 $1 {[%emt 0:00:51]} Bxe4 {[%emt 0:00:14]} 17. Bd3 {[%emt 0:00:14] Dodges Rc2} Bxd3 {[%emt 0:00:45]} 18. Qxd3 {[%emt 0:00:03]} Qa5+ {[%emt 0:00:05]} 19. Kf1 {[%emt 0:01:57]} (19. Nd2 $11) 19... Rc3 $36 {[%emt 0:01:19][%mdl 2048] Black is in control.} 20. Qd2 {[%emt 0:00:02]} (20. Qe4 $142 Ng6 (20... Rxa3 21. Rxa3 Qxa3 22. g3 $11) 21. Re1) 20... Rfc8 {[%emt 0:00:36]} 21. h4 {[%emt 0:02:26][%cal Of1g1]} (21. Qxh6 $2 Rxa3 22. Re1 Ra1 $19) 21... Qa6+ {[%emt 0:02:07]} 22. Kg1 {[%emt 0:00:37]} Rxa3 {[%emt 0:01:10]} (22... Kh7 {with more complications.} 23. d5 Qd6 24. Re1 Nxd5 25. Rh3 Qc5) 23. Rxa3 {[%emt 0:00:29]} (23. Rb1 $15) 23... Qxa3 {[%emt 0:00:02]} 24. Kh2 {[%emt 0:00:02][%cal Od2f4]} Qd6+ {[%emt 0:00:57]} 25. g3 {[%emt 0:00:01][%cal Oh1a1]} Qd5 {[%emt 0:00:38]} 26. Qd3 {[%emt 0:01:25]} (26. Re1 $17) 26... b5 {[%emt 0:00:20]} 27. Re1 {[%emt 0:00:02]} Ng6 {[%emt 0:00:18]} (27... Nf5 $19 {And now ...b4 would win.} 28. Re4 b4) 28. Nd2 {[%emt 0:00:43]} (28. Ra1 $17) 28... b4 {[%emt 0:00:09]} (28... Rd8 $19 {[%cal Oa7a5] ...a5! would now be deadly.} 29. Re3 a5 (29... Qxd4 $2 30. Re8+ Kg7 31. Rxd8 $18)) 29. Ne4 $2 {[%emt 0:00:28]} (29. Ra1 $17) 29... Kg7 $19 {[%emt 0:00:04]} 30. Qf3 {[%emt 0:00:50]} f5 {[%emt 0:00:10]} ({Not} 30... Qxd4 31. Rd1 Qe5 32. Nd6 $17) 31. h5 $2 {[%emt 0:01:52]} (31. Ng5 Rd8 (31... Qxd4 32. Nxf7 Rf8 33. h5 $19) 32. Qxd5 Rxd5 33. Nf3) 31... fxe4 {[%emt 0:00:15]} 32. Qg4 {[%emt 0:00:07] [#]} b3 $2 {[%emt 0:00:08]} 33. Qxc8 $11 {[%emt 0:00:14] The position is equal.} Qxh5+ {[%emt 0:00:00]} 34. Kg1 {[%emt 0:00:01]} Qf3 {[%emt 0:00:06][%cal Oe4e3] Repels Qc3. aiming for ...e3!} 35. Qb7 {[%emt 0:01:18]} Nf4 {[%emt 0:00:09]} 36. gxf4 {[%emt 0:01:10]} Qg4+ {[%emt 0:00:01]} 37. Kh1 {[%emt 0:00:19] Weighted Error Value: White=0.56/Black=0.40.  Loses game:     	White=1     	---        Mistake:       	White=7     	Black=3      Inaccurate:     	White=1     	Black=3      OK:         	White=9     	Black=9      Best:        	White=5     	Black=2      Strong:       	White=1     	Black=1} (37. Kf1 $5 Qh3+ $8 38. Kg1 Qg4+ 39. Kf1 Qh3+ 40. Kg1 Qg4+ $11) 1/2-1/2

[Event "XVI Memorial Ezequiel Martin 2024"]
[Site "Mollet"]
[Date "2024.06.09"]
[Round "2.3"]
[White "Perez Pastora, Evarist"]
[Black "Diaz Camallonga, Carles"]
[Result "0-1"]
[ECO "C17"]
[WhiteElo "2070"]
[BlackElo "2478"]
[Annotator "TA"]
[PlyCount "112"]
[EventDate "2024.06.01"]
[EventType "swiss"]
[EventCountry "ESP"]
[SourceTitle "playchess.com"]
[Source "ChessBase"]
[SourceQuality "1"]
[TimeControl "900+5"]

{[%evp 21,112,-16,-9,-19,92,53,65,15,49,20,11,0,0,0,0,-45,-48,-104,-94,-144,0,0,0,-38,-17,-94,0,0,0,0,0,-13,0,0,0,0,13,-83,-94,-84,-68,-93,-106,-95,-103,-118,0,-6,0,0,0,0,0,-64,-38,-35,-15,-32,0,-2,-8,-112,-16,-20,0,-67,0,-12,0,-96,-109,-111,-102,-102,-104,-102,-100,-89,-87,-85,-85,-128,-122,-995,-966,-570,0,0,0,-29984,-29985,-29985,-29986]} 1. e4 {[%emt 0:00:03]} e6 {[%emt 0:15:10]} 2. d4 {[%emt 0:00:06]} d5 {[%emt 0:00:00]} 3. Nc3 {[%emt 0:00:04][%cal Bb1c3,Bc3b5,Bb5d6][%mdl 32]} Bb4 {[%emt 0:00:00]} 4. e5 {[%emt 0:00:01]} c5 {[%emt 0:00:00]} 5. Bd2 {[%emt 0:00:02]} Ne7 {[%emt 0:00:00]} 6. Nb5 {[%emt 0:00:03]} Bxd2+ {[%emt 0:00:00]} 7. Qxd2 {[%emt 0:00:01]} O-O {[%emt 0:00:00]} 8. f4 {[%emt 0:00:05]} a6 {[%emt 0:00:00]} 9. Nd6 {[%emt 0:00:05]} cxd4 {[%emt 0:00:00]} 10. Nf3 {[%emt 0:00:05]} Nbc6 {[%emt 0:00:00]} 11. Bd3 {[%emt 0:00:05]} f6 {[%emt 0:00:00]} 12. O-O {[%emt 0:00:11]} f5 {[%emt 0:00:00]} (12... Bd7 $11) 13. Qf2 {[%emt 0:00:35][%mdl 1024] White has strong compensation.} Qb6 {[%emt 0:00:00]} 14. a4 {[%emt 0:00:27]} ({Better is} 14. c4 $14) 14... h6 {[%emt 0:00:00]} 15. b3 {[%emt 0:00:19]} Bd7 {[%emt 0:00:00]} 16. Kh1 {[%emt 0:00:26]} Nc8 {[%emt 0:00:00]} 17. Nxc8 {[%emt 0:00:25]} Raxc8 {[%emt 0:00:00]} 18. Rac1 {[%emt 0:00:37]} Be8 {[%emt 0:00:00]} 19. Qh4 {[%emt 0:00:28]} (19. Rg1 $1 $15) 19... Nb4 $17 {[%emt 0:00:00]} 20. Rfd1 {[%emt 0:00:13]} (20. Qf2 $142) 20... Na2 {[%emt 0:00:00]} ({Black should play} 20... Rc3 $1 $17 {Hoping for ...Nxd3.} 21. h3 Bf7) 21. Ra1 $11 {[%emt 0:00:01]} Nc3 {[%emt 0:00:00]} 22. Rf1 {[%emt 0:00:16]} Ne4 {[%emt 0:00:00]} 23. Qe7 {[%emt 0:01:53]} (23. g4 $11) 23... Rc7 {[%emt 0:00:00]} (23... Nc5 $1 $17 {aiming for ...Bh5.} 24. Qh4 Nxd3 25. cxd3 Bd7 (25... Qxb3 26. Nxd4 Qxd3 27. Nxe6 $15)) 24. a5 $1 {[%emt 0:00:40] Qxf8+ would now be deadly.} Qc6 {[%emt 0:00:00]} 25. Qb4 {[%emt 0:00:04]} Qc3 {[%emt 0:00:00]} 26. Qxd4 {[%emt 0:00:10]} Bh5 {[%emt 0:00:00]} 27. Qxc3 $1 {[%emt 0:00:05]} Rxc3 {[%emt 0:00:00]} 28. Nd4 {[%emt 0:00:04]} Nc5 {[%emt 0:00:00]} 29. b4 {[%emt 0:01:34]} (29. Rfc1 $11) 29... Nxd3 $17 {[%emt 0:00:00]} 30. cxd3 {[%emt 0:00:01]} Re8 {[%emt 0:00:00]} 31. Rab1 {[%emt 0:00:19]} Rxd3 {[%emt 0:00:00]} 32. Nb3 {[%emt 0:00:07]} Re7 {[%emt 0:00:00] Black is more active.} 33. Nc5 {[%emt 0:00:11]} Rc3 {[%emt 0:00:00]} (33... Rd4 $17 {Threatening ...g5.} 34. h4 Kf7) 34. Rfc1 $11 {[%emt 0:00:31]} Rxc1+ {[%emt 0:00:00]} 35. Rxc1 {[%emt 0:00:01][%mdl 4096] Endgame. KRB-KRN} g5 {[%emt 0:00:00]} 36. fxg5 {[%emt 0:00:12]} hxg5 {[%emt 0:00:00]} 37. Rb1 {[%emt 0:00:09]} (37. Nb3 $11) 37... Be2 {[%emt 0:03:00]} 38. Kg1 $1 {[%emt 0:00:04]} Bc4 {[%emt 0:00:00] Black wants to play ...Kf7.} 39. g3 {[%emt 0:00:22]} Kf7 {[%emt 0:00:00] White should prevent ...Kg6.} 40. Kf2 {[%emt 0:00:05]} Kg6 {[%emt 0:00:00]} 41. Ke3 {[%emt 0:00:06]} (41. h4 $1 $11 {was the only way to keep the balance.}) 41... Kh5 {[%emt 0:00:00]} (41... Rf7 $17 {...f4+ is the strong threat.} 42. Rb2 (42. Nxe6 $2 Re7 $19) 42... f4+ 43. Kd4 Kf5) 42. h3 {[%emt 0:00:31]} Kg6 {[%emt 0:00:00][%cal Of5f4]} 43. Rh1 {[%emt 0:00:01]} (43. Kd4 $11) 43... Kh5 {[%emt 0:00:00]} (43... d4+ $15 44. Kxd4 Bd5) 44. Rh2 {[%emt 0:00:20]} Bb5 {[%emt 0:00:00]} 45. h4 {[%emt 0:00:05]} (45. Rg2 $11) 45... Kg4 $1 $17 {[%emt 0:00:00]} 46. hxg5 {[%emt 0:00:03]} Kxg3 {[%emt 0:00:00]} 47. Rh6 {[%emt 0:00:25][%cal Oh6f6] Black must now prevent Rf6!} f4+ {[%emt 0:00:00]} 48. Kd2 {[%emt 0:00:11][%cal Oh6f6]} f3 {[%emt 0:00:00] Strongly threatening ...f2.} 49. Rf6 {[%emt 0:00:08][%cal Od2e3]} f2 {[%emt 0:00:26]} 50. Nd3 {[%emt 0:00:01]} Bxd3 {[%emt 0:00:01]} 51. Kxd3 {[%emt 0:00:00] [#] KR-KR} Rc7 $1 {[%emt 0:00:12]} 52. g6 $2 {[%emt 0:00:23][%mdl 8192]} (52. Ke2 $17) 52... Kg2 $19 {[%emt 0:00:06]} 53. Ke2 {[%emt 0:00:14] [#]} Rc2+ $2 {[%emt 0:00:14]} (53... Kg1 $1 $19 {( -> ...Rc2+)} 54. Rf4 (54. Rxf2 Rc2+ 55. Kd3 Rxf2 56. Kd4 Rg2 57. b5 axb5 58. g7 Rxg7 59. Kc5 Kf2 60. Kd6 d4 61. a6 bxa6 62. Kxe6 d3 63. Kf6 Rg1 64. e6 d2 65. e7 Re1 66. Kg7 d1=Q 67. e8=B Rxe8 68. Kf7 Qd7+ 69. Kg6 Qe6+ 70. Kh5 Rg8 71. Kh4 Qh6#) 54... Rc2+ 55. Kd1 Rc4 (55... f1=R+ 56. Rxf1+ Kxf1 57. Kxc2 Kf2 58. g7 Ke3 59. g8=Q Ke4 60. Qxe6)) 54. Kd3 {[%emt 0:00:01]} Rc4 {[%emt 0:00:09]} (54... f1=B+ 55. Kxc2 Be2 56. g7 (56. Rxe6 Bg4 $18) 56... Kh3 57. g8=Q (57. g8=B Kg3 $18) (57. Rh6+ Kg3 58. Rf6 Kh3 59. g8=Q Bg4 60. Qg5 Bf5+ 61. Kd2 Bg4 62. Rg6 Kh2 63. Qxg4 Kh1 64. Rh6#) 57... Bg4 58. Qg5 (58. Kd2 Kh4 59. Rf4 Kh3 60. Qxg4+ Kh2 61. Rf2+ Kh1 62. Qg2#) 58... d4 59. Kd2 Kg3 60. Rg6 (60. Rxe6 Kf3 61. Rf6+ Kg3 62. Rg6 Kh2 63. Qxg4 Kh1 64. Rh6#) (60. Qf4+ Kh3 61. Rh6+ Bh5 62. Qg5 Kh2 63. Rxh5#) 60... Kh2 61. Qxg4 Kh1 62. Rh6#) (54... Rc7 $2 55. Ke2 Kg1 (55... Rc2+ 56. Kd1 $19) 56. Rf4 $19 (56. Rxf2 $2 Rc2+ 57. Ke3 Rxf2 $19)) 55. Ke2 {[%emt 0:00:22][%mdl 8192]} (55. g7 $11 Rg4 (55... f1=R 56. g8=Q+ Kh3 57. Rxf1 Rg4 58. Rf3+ Kh4 59. Qh8+ Kg5 60. Qf6+ Kh5 61. Rh3+) 56. Ke2 Re4+ (56... Rxb4 57. g8=Q+ Kh3 58. Rh6+ Rh4 59. Kxf2 Rxh6 60. Qg3#) (56... Rxg7 57. Rxf2+ Kg3 58. Rf3+ Kg4 59. Rf6 $11) 57. Kd2) 55... Re4+ {[%emt 0:00:01]} (55... Rxb4 56. Rxf2+ Kh3 57. Rf3+ Kh2 58. g7 $18) 56. Kd2 {[%emt 0:00:01]} f1=Q {[%emt 0:00:03] Weighted Error Value: White=0.48/Black=0.34.  Loses game:     	White=2     	---        Mistake:       	White=9     	Black=6      Inaccurate:     	White=5     	Black=3      OK:         	White=8     	Black=7      Best:        	White=7     	Black=9      Strong:       	White=3     	Black=2} ({Less strong is} 56... f1=B 57. Rxe6 Rd4+ (57... Rxb4 58. Rf6 $15) 58. Kc1 $17) 0-1

[Event "XVI Memorial Ezequiel Martin 2024"]
[Site "Mollet"]
[Date "2024.06.09"]
[Round "2.4"]
[White "Ayats Llobera, Gerard"]
[Black "Aleksanyan Israilyan, Nicolas"]
[Result "1-0"]
[ECO "C60"]
[WhiteElo "2466"]
[BlackElo "2081"]
[Annotator "TA"]
[PlyCount "63"]
[EventDate "2024.06.01"]
[EventType "swiss"]
[EventCountry "ESP"]
[SourceTitle "playchess.com"]
[Source "ChessBase"]
[SourceQuality "1"]
[TimeControl "900+5"]

{[%evp 14,63,36,37,40,20,41,9,27,12,7,-5,0,-18,13,-6,25,0,0,0,0,0,23,18,94,81,138,120,111,96,264,266,780,781,897,901,1156,1137,1594,1583,1464,1337,1944,1928,2635,1796,29983,29984,29984,29985,3484,2028]} 1. e4 {[%emt 0:00:01]} e5 {[%emt 0:00:02]} 2. Nf3 {[%emt 0:00:01]} Nc6 {[%emt 0:00:01]} 3. Bb5 {[%emt 0:00:01][%cal Bf1b5,Bb5a4,Ba4b3][%mdl 32]} g6 {[%emt 0:00:02]} 4. O-O {[%emt 0:00:06]} Bg7 {[%emt 0:00:01]} 5. c3 {[%emt 0:00:01]} Nge7 {[%emt 0:00:03]} 6. d4 {[%emt 0:00:00]} a6 {[%emt 0:00:00]} 7. Ba4 {[%emt 0:00:12]} exd4 {[%emt 0:00:02]} 8. cxd4 {[%emt 0:15:23]} b5 9. Bb3 {[%emt 0:00:00]} Na5 {[%emt 0:00:01]} 10. Bc2 {[%emt 0:00:00]} O-O {[%emt 0:00:08] The position is equal.} 11. Nc3 {[%emt 0:00:00][%cal Bb1c3,Bc3e2,Be2f4,Bf4e6][%mdl 32]} d6 {[%emt 0:00:08]} 12. Re1 {[%emt 0:00:00]} c5 {[%emt 0:00:06]} 13. d5 {[%emt 0:00:00]} Nc4 {[%emt 0:00:38]} 14. Rb1 {[%emt 0:00:00]} Bb7 {[%emt 0:01:26]} 15. a4 {[%emt 0:00:35]} b4 {[%emt 0:00:22]} 16. Ne2 {[%emt 0:00:00]} a5 {[%emt 0:00:14]} 17. Bd3 {[%emt 0:00:00]} Nb6 {[%emt 0:00:01] [#] ...c4 is the strong threat.} 18. b3 {[%emt 0:00:00]} f5 {[%emt 0:00:10]} (18... Ba6 $11) 19. Nf4 $16 {[%emt 0:00:20]} Bc8 {[%emt 0:00:22]} (19... Bc3 $142) 20. Ng5 {[%emt 0:00:00]} Bc3 {[%emt 0:01:37]} 21. Bd2 {[%emt 0:00:00] And now Nge6 would win. White is more active.} Bxd2 $2 {[%emt 0:00:07] Black cannot hold the game after this.} (21... fxe4 $16 22. Nfe6 (22. Nxe4 Bxd2 23. Qxd2 Nf5 $14) (22. Bxe4 Rxf4 23. Bxf4 Bxe1 $16) (22. Rxe4 Bf5 $16) 22... Bxe6 23. Nxe6 Qd7) 22. Qxd2 $18 {[%emt 0:00:00]} Qd7 $2 {[%emt 0:00:06]} (22... Qc7 23. Nfe6 Bxe6) 23. Nfe6 {[%emt 0:00:00]} Re8 {[%emt 0:00:12]} 24. Qb2 {[%emt 0:00:00][%csl Ge6][%cal Rb2g7] [#]} Nc6 {[%emt 0:00:02]} 25. dxc6 {[%emt 0:00:00]} Qe7 {[%emt 0:00:05]} 26. exf5 {[%emt 0:00:00] Black must now prevent f6.} Bxe6 {[%emt 0:00:14] Black is weak on the light squares} 27. Nxe6 {[%emt 0:00:00][%cal Bg5e6,Be6c5,Bc5d3][%mdl 32]} Nd5 {[%emt 0:00:20]} 28. Bc4 {[%emt 0:00:00]} Nc3 {[%emt 0:00:17]} 29. Nxc5+ {[%emt 0:00:00]} Qf7 {[%emt 0:00:13]} 30. Bxf7+ {[%emt 0:00:00]} Kxf7 31. fxg6+ hxg6 {[%emt 0:00:02]} 32. Nd3 {[%emt 0:00:00] Weighted Error Value: White=0.11 (very precise) /Black=0.74.  Loses game:     	---       	Black=1      Mistake:       	---       	Black=3      Inaccurate:     	White=1     	Black=2      OK:         	White=4     	Black=3      Best:        	White=1     	Black=1} 1-0

[Event "XVI Memorial Ezequiel Martin 2024"]
[Site "Mollet"]
[Date "2024.06.09"]
[Round "2.5"]
[White "Garcia Marin, Guillem"]
[Black "Hernandez, Cristian Andres"]
[Result "0-1"]
[ECO "A46"]
[WhiteElo "2062"]
[BlackElo "2350"]
[Annotator "RC"]
[PlyCount "80"]
[EventDate "2024.06.01"]
[EventType "swiss"]
[EventCountry "ESP"]
[SourceTitle "playchess.com"]
[Source "ChessBase"]
[SourceQuality "1"]
[TimeControl "900+5"]

1. d4 {[%emt 0:00:02]} Nf6 {[%emt 0:00:01]} 2. Nf3 {[%emt 0:00:02]} e6 {[%emt 0:00:06]} 3. g3 {[%emt 0:00:06]} b5 {[%emt 0:00:07]} 4. Bg2 {[%emt 0:00:03]} Bb7 {[%emt 0:00:01]} 5. O-O {[%emt 0:00:03]} c5 {[%emt 0:00:02]} 6. a4 {[%emt 0:00:06]} b4 {[%emt 0:00:02]} 7. c4 {[%emt 0:00:05]} bxc3 {[%emt 0:00:04]} 8. bxc3 {[%emt 0:00:08]} Be7 {[%emt 0:00:05]} 9. Ba3 {[%emt 0:00:41]} Qc7 {[%emt 0:00:21]} 10. Nbd2 {[%emt 0:00:16]} O-O {[%emt 0:00:05]} 11. Rb1 {[%emt 0:01:10]} Na6 {[%emt 0:00:27]} 12. Nc4 {[%emt 0:00:39]} Be4 {[%emt 0:00:14]} 13. Rc1 {[%emt 0:00:17]} Rfc8 {[%emt 0:00:10]} 14. Nce5 {[%emt 0:03:42]} h6 {[%emt 0:01:06]} 15. Nd3 {[%emt 0:00:40]} d5 {[%emt 0:00:19]} 16. Nde5 {[%emt 0:00:30]} Rab8 {[%emt 0:00:17]} 17. Bh3 {[%emt 0:00:42]} c4 {[%emt 0:00:34]} 18. Bxe7 {[%emt 0:00:21]} Qxe7 {[%emt 0:00:02]} 19. Nd2 {[%emt 0:00:06]} Bh7 {[%emt 0:00:01]} 20. Bg2 {[%emt 0:00:14]} Rb2 {[%emt 0:00:19]} 21. Re1 {[%emt 0:00:29]} Qa3 {[%emt 0:02:15]} 22. e4 {[%emt 0:00:14]} Ra2 {[%emt 0:00:16]} 23. exd5 {[%emt 0:00:19]} exd5 {[%emt 0:00:01]} 24. Nf1 {[%emt 0:01:20]} Qb2 {[%emt 0:00:49]} 25. Qf3 {[%emt 0:00:35]} Nc7 {[%emt 0:00:41]} 26. Nc6 {[%emt 0:00:50]} Be4 {[%emt 0:01:25]} 27. Rb1 {[%emt 0:00:39]} Bxf3 {[%emt 0:03:34]} 28. Rxb2 {[%emt 0:00:02]} Rxb2 {[%emt 0:00:02]} 29. Ne7+ {[%emt 0:00:12]} Kf8 {[%emt 0:00:07]} 30. Nxc8 {[%emt 0:00:02]} Bxg2 {[%emt 0:00:02]} 31. Kxg2 {[%emt 0:00:02]} Ne4 {[%emt 0:00:11]} 32. Nxa7 {[%emt 0:00:48]} Nxf2 {[%emt 0:00:26]} 33. Kf3 {[%emt 0:00:40]} Ne4 {[%emt 0:00:07]} 34. a5 {[%emt 0:00:39]} Rf2+ {[%emt 0:00:21]} 35. Ke3 {[%emt 0:00:07]} Ra2 {[%emt 0:00:07]} 36. Nc6 {[%emt 0:00:27]} Nxc3 {[%emt 0:00:06]} 37. Kf4 {[%emt 0:00:17]} N3b5 {[%emt 0:00:49]} 38. Ne3 {[%emt 0:00:19]} f6 {[%emt 0:00:13]} 39. h4 {[%emt 0:00:03]} h5 {[%emt 0:00:09]} 40. Rb1 {[%emt 0:00:09]} Rf2# {[%emt 0:00:12]} 0-1

[Event "XVI Memorial Ezequiel Martin 2024"]
[Site "Mollet"]
[Date "2024.06.09"]
[Round "2.6"]
[White "Aloma Vidal, Robert"]
[Black "Nadal Fajardo, Ricard"]
[Result "1/2-1/2"]
[ECO "A14"]
[WhiteElo "2428"]
[BlackElo "2073"]
[Annotator "RC"]
[PlyCount "171"]
[EventDate "2024.06.01"]
[EventType "swiss"]
[EventCountry "ESP"]
[SourceTitle "playchess.com"]
[Source "ChessBase"]
[SourceQuality "1"]
[TimeControl "900+5"]

1. c4 {[%emt 0:00:03]} e6 {[%emt 0:00:09]} 2. g3 {[%emt 0:00:02]} d5 {[%emt 0:00:01]} 3. Bg2 {[%emt 0:00:01]} Nf6 {[%emt 0:00:01]} 4. Nf3 {[%emt 0:00:01]} Be7 {[%emt 0:00:01]} 5. O-O {[%emt 0:00:03]} O-O {[%emt 0:00:01]} 6. b3 {[%emt 0:00:01]} Nbd7 {[%emt 0:00:18]} 7. Bb2 {[%emt 0:00:04]} b6 {[%emt 0:00:13]} 8. cxd5 {[%emt 0:00:02]} exd5 {[%emt 0:00:17]} 9. Nc3 {[%emt 0:00:07]} Bb7 {[%emt 0:00:03]} 10. e3 {[%emt 0:00:04]} a6 {[%emt 0:00:20]} 11. Ne2 {[%emt 0:00:14]} Bd6 {[%emt 0:00:10]} 12. Rc1 {[%emt 0:01:11]} c5 {[%emt 0:00:05]} 13. d4 {[%emt 0:00:03]} Qe7 {[%emt 0:00:25]} 14. Nf4 {[%emt 0:00:10]} Rac8 {[%emt 0:01:15]} 15. dxc5 {[%emt 0:00:35]} bxc5 {[%emt 0:00:04]} 16. Nh4 {[%emt 0:00:19]} Be5 {[%emt 0:01:32]} 17. Ba3 {[%emt 0:05:15]} Rfd8 {[%emt 0:02:50]} 18. Nd3 {[%emt 0:00:55]} Ne4 {[%emt 0:00:51]} 19. Nxe5 {[%emt 0:01:19]} Qxe5 {[%emt 0:00:43]} 20. Nf3 {[%emt 0:00:38]} Qf5 {[%emt 0:00:54]} 21. Qc2 {[%emt 0:00:11]} Ndf6 {[%emt 0:01:37]} 22. Bb2 {[%emt 0:00:09]} h6 {[%emt 0:00:17]} 23. Nd2 {[%emt 0:01:29]} Qe6 {[%emt 0:00:59]} 24. Nxe4 {[%emt 0:00:16]} Nxe4 {[%emt 0:00:15]} 25. Rfe1 {[%emt 0:00:12]} Rd7 {[%emt 0:01:50]} 26. Qe2 {[%emt 0:00:18]} Rdc7 {[%emt 0:00:20]} 27. Qh5 {[%emt 0:00:14]} Qg6 {[%emt 0:00:32]} 28. Qxg6 {[%emt 0:00:22]} fxg6 {[%emt 0:00:01]} 29. f3 {[%emt 0:00:48]} Nf6 {[%emt 0:00:01]} 30. Bh3 {[%emt 0:00:23]} Re8 {[%emt 0:00:13]} 31. b4 {[%emt 0:00:03]} Bc8 {[%emt 0:00:55]} 32. Bg2 {[%emt 0:00:49]} c4 {[%emt 0:00:17]} 33. e4 {[%emt 0:00:04]} dxe4 {[%emt 0:00:06]} 34. fxe4 {[%emt 0:00:01]} Bb7 {[%emt 0:00:09]} 35. e5 {[%emt 0:00:13]} Nd5 {[%emt 0:00:01]} 36. a3 {[%emt 0:01:26]} c3 {[%emt 0:00:05]} 37. Bxd5+ {[%emt 0:00:00]} Bxd5 {[%emt 0:00:00]} 38. Rxc3 {[%emt 0:00:00]} Rxc3 {[%emt 0:00:24]} 39. Bxc3 Rc8 {[%emt 0:00:00]} 40. Re3 {[%emt 0:00:00]} Kf7 {[%emt 0:00:00]} 41. Kf2 {[%emt 0:00:00]} Ke6 {[%emt 0:00:15]} 42. Ke2 {[%emt 0:00:00]} Rf8 {[%emt 0:00:00]} 43. Bd4 {[%emt 0:00:02]} Bc4+ {[%emt 0:00:00]} 44. Kd2 {[%emt 0:00:02]} Bb5 {[%emt 0:00:03]} 45. Re1 {[%emt 0:00:13]} Rf3 {[%emt 0:00:06]} 46. Be3 {[%emt 0:00:15]} Rf5 {[%emt 0:00:05]} 47. Bc5 {[%emt 0:00:12]} Rxe5 {[%emt 0:00:05]} 48. Rxe5+ Kxe5 {[%emt 0:00:00]} 49. Kc3 {[%emt 0:00:10]} Ba4 {[%emt 0:00:06]} 50. Bd4+ {[%emt 0:00:02]} Kd5 {[%emt 0:00:06]} 51. Bxg7 {[%emt 0:00:01]} h5 {[%emt 0:00:01]} 52. Bf6 {[%emt 0:00:02]} Ke6 {[%emt 0:00:10]} 53. Bd8 {[%emt 0:00:03]} Kd5 {[%emt 0:00:02]} 54. Kd3 {[%emt 0:00:01]} Bb5+ {[%emt 0:00:05]} 55. Ke3 {[%emt 0:00:00]} Ba4 {[%emt 0:00:12]} 56. Kf4 {[%emt 0:00:02]} Ke6 {[%emt 0:00:04]} 57. Ke4 {[%emt 0:00:05]} Bb3 {[%emt 0:00:06]} 58. Kd4 {[%emt 0:00:02]} Ba4 {[%emt 0:00:03]} 59. Kc5 {[%emt 0:00:01]} Kf5 {[%emt 0:00:07]} 60. Kb6 {[%emt 0:00:10]} Bb5 {[%emt 0:00:03]} 61. h3 {[%emt 0:00:42]} Ke4 {[%emt 0:00:06]} 62. Ka5 {[%emt 0:00:00]} Kd5 {[%emt 0:00:05]} 63. a4 {[%emt 0:00:00]} Bf1 {[%emt 0:00:02]} 64. Kb6 {[%emt 0:00:00]} Kd6 {[%emt 0:00:08]} 65. Bg5 {[%emt 0:00:00]} Kd7 {[%emt 0:00:02]} 66. Bf4 {[%emt 0:00:00]} Kc8 {[%emt 0:00:01]} 67. h4 {[%emt 0:00:09]} Be2 {[%emt 0:00:08]} 68. Be5 {[%emt 0:00:11]} Bf1 {[%emt 0:00:02]} 69. Kc6 {[%emt 0:00:10]} Bd3 {[%emt 0:00:03]} 70. b5 {[%emt 0:00:07]} axb5 {[%emt 0:00:02]} 71. axb5 {[%emt 0:00:13]} Be4+ {[%emt 0:00:04]} 72. Kb6 {[%emt 0:00:00]} Bf3 {[%emt 0:00:03]} 73. Ka7 {[%emt 0:00:00]} Be2 {[%emt 0:00:07]} 74. b6 {[%emt 0:00:00]} Bf3 {[%emt 0:00:01]} 75. Ka6 {[%emt 0:00:01]} Bg2 {[%emt 0:00:03]} 76. Kb5 {[%emt 0:00:02]} Kb7 {[%emt 0:00:02]} 77. Kc5 {[%emt 0:00:01]} Be4 {[%emt 0:00:01]} 78. Bc7 {[%emt 0:00:01]} Bf3 {[%emt 0:00:04]} 79. Kd6 {[%emt 0:00:01]} Bg4 {[%emt 0:00:02]} 80. Ke5 {[%emt 0:00:02]} Bf5 {[%emt 0:00:02]} 81. Kf6 {[%emt 0:00:02]} Bg4 {[%emt 0:00:12]} 82. Kxg6 {[%emt 0:00:02]} Bf3 {[%emt 0:00:02]} 83. Kg5 {[%emt 0:00:02]} Bg4 {[%emt 0:00:01]} 84. Kf4 {[%emt 0:00:01]} Bd1 {[%emt 0:00:01]} 85. Ke3 {[%emt 0:00:01]} Bg4 {[%emt 0:00:01]} 86. Kf4 {[%emt 0:00:59]} 1/2-1/2